Cogmind - Beta 12 X1 @@@ ROGUE MODE // 2022.07.11 @ 13:25:26 Player: Plexion Result: Self-destructed Performance ------------- Evolutions (2) 1000 Regions Visited (7) 1400 Robots Destroyed (75) 375 Value Destroyed (2000) 2000 Prototype IDs (26) 520 Alien Tech Used (0) 0 Bonus (300) 300 TOTAL SCORE: 5595 Bonus ------- Aligned with FarCom 300 Cogmind --------- Core Integrity 475/550 Matter 213/300 Energy 240/240 System Corruption 0% Temperature Cool (0) Movement Core (1550) Ox30 Location -8/Materials Parts ------- > --- POWER (1) -------- Nuclear Core > --- PROPULSION (4) --- (None) > --- UTILITY (4) ------ Huge Storage Unit Improved Light Armor Plating > --- WEAPON (2) ------- Light Assault Rifle > --- INVENTORY (25) --- Ion Engine Light Deuterium Engine Light Treads Improved VTOL Module Improved VTOL Module Improved VTOL Module Improved VTOL Module Improved VTOL Module Improved Heat Sink High-capacity Storage Unit Experimental Sensor Array Modified TNC Improved Light Armor Plating Advanced Beam Cannon Advanced Beam Cannon Assault Rifle Improved Light Cannon Grenade Launcher Mini Grenade Launcher Plasma Cutter Maul Peak State ------------ > --- POWER ------------ Nuclear Core > --- PROPULSION ------- Light Treads Wheel Wheel Compact Wheel > --- UTILITY ---------- Huge Storage Unit Hardened Medium Armor Plating Hardened Medium Armor Plating Improved Light Armor Plating > --- WEAPON ----------- Advanced Beam Cannon Improved Assault Rifle > --- INVENTORY -------- Ion Engine Light Deuterium Engine Light Treads Improved VTOL Module Improved VTOL Module Improved VTOL Module Improved VTOL Module Improved VTOL Module High-capacity Storage Unit Experimental Sensor Array Modified TNC Improved Light Armor Plating Assault Rifle Light Assault Rifle Improved Assault Rifle Improved Light Cannon Grenade Launcher Mini Grenade Launcher Plasma Cutter Maul [Rating: 28] Favorites ----------- Power Ion Engine Engine Ion Engine Power Core Nuclear Core Propulsion Compact Wheel Treads Light Treads Wheel Compact Wheel Flight Unit Improved VTOL Module Utility Medium Armor Plating Device Heat Sink Storage Huge Storage Unit Protection Medium Armor Plating Weapon Maul Energy Cannon Advanced Beam Cannon Ballistic Gun Improved Assault Rifle Ballistic Cannon Improved Light Cannon Launcher Mini Grenade Launcher Impact Weapon Maul Build | -11 -10 -10 -9 -9 -9 -8 -8 ------- Run | Scr Mat Min Mat Min Exi Min Mat Slots Evolved 4 | . . . 2 . . . 2 Power . | . . . . . . . . Propulsion 2 | . . . . . . . 2 Utility 2 | . . . 2 . . . . Weapon . | . . . . . . . . Parts Attached 69 | 6 9 5 21 2 . 3 23 Power 5 | 1 1 . 2 . . . 1 Engine 4 | 1 1 . 2 . . . . Core 1 | . . . . . . . 1 Reactor . | . . . . . . . . Propulsion 16 | 2 . . 6 2 . 1 5 Treads 5 | 2 . . 1 1 . . 1 Leg . | . . . . . . . . Wheel 10 | . . . 5 1 . 1 3 Hover . | . . . . . . . . Flight 1 | . . . . . . . 1 Utility 23 | 1 5 1 10 . . . 6 Device 2 | . 1 . 1 . . . . Storage 5 | 1 3 . 1 . . . . Processor . | . . . . . . . . Hackware . | . . . . . . . . Protection 16 | . 1 1 8 . . . 6 Artifact . | . . . . . . . . Weapon 25 | 2 3 4 3 . . 2 11 Energy Gun . | . . . . . . . . Energy Cannon 1 | . . . . . . . 1 Ballistic Gun 11 | 2 1 1 1 . . . 6 Ballistic Cannon 1 | . . . 1 . . . . Launcher 5 | . . 1 . . . 1 3 Special Weapon . | . . . . . . . . Impact Weapon 7 | . 2 2 1 . . 1 1 Slashing Weapon . | . . . . . . . . Piercing Weapon . | . . . . . . . . Special Melee Weapon . | . . . . . . . . Unidentified Prototypes 3 | . . . 1 . . . 2 Parts Lost 24 | . . 1 9 1 . 1 12 Power 1 | . . . 1 . . . . Propulsion 9 | . . . 3 . . 1 5 Utility 10 | . . 1 4 1 . . 4 Weapon 4 | . . . 1 . . . 3 Highest Loss Streak 7 | . . 1 3 1 . 1 7 To Critical Strikes . | . . . . . . . . Average Slot Usage (%) 93 | . 94 100 92 92 88 88 93 Engine 9 | . 14 14 10 11 11 11 1 Core 1 | . . . . . . . 7 Treads 10 | . 28 28 7 2 . . 3 Wheel 14 | . . . 11 19 22 22 28 Device 2 | . 3 . 9 . . . . Storage 11 | . 14 14 11 11 11 11 9 Protection 19 | . 5 14 19 26 22 22 25 Ballistic Gun 10 | . 20 15 4 11 11 11 7 Ballistic Cannon 1 | . . . 7 . . . . Impact Weapon 9 | . 8 11 10 11 11 10 6 Naked Turns . | . . . . . . . . Heaviest Build 113 | 11 58 58 112 112 105 105 113 Greatest Support 52 | 40 40 40 40 32 32 32 52 Greatest Overweight (x) 6 | . 1 1 6 6 3 4 5 Average Overweight (x) 2 | . . 1 3 3 3 3 2 Largest Inventory Capacity 25 | 8 25 20 25 25 25 25 25 Average Capacity 22 | 6 15 20 23 25 25 25 25 Most Carried 23 | 2 10 10 9 11 12 12 23 Average Carried 10 | 1 6 9 6 8 11 11 16 Final Capacity 25 | 8 20 20 25 25 25 25 25 Final Carried 21 | 2 9 9 8 11 12 11 21 Class Distribution -------------------- 79% | Mutant 20% | Scavenger-Mutant Dominant Class ---------------- Mutant | -10/Materials Mutant | -10/Mines Mutant | -9/Materials Mutant | -9/Mines Mutant | -9/Exiles Mutant | -8/Mines Scavenger-Mutant | -8/Materials Resources | -11 -10 -10 -9 -9 -9 -8 -8 ----------- Run | Scr Mat Min Mat Min Exi Min Mat Matter Collected 1185 | 200 150 155 230 59 . 8 383 Remotely . | . . . . . . . . Salvage Created 2435 | . 217 102 647 475 . 64 930 Parts 93 | . 13 7 22 8 . . 43 Haulers Intercepted 4 | . . . 2 . . . 2 Recyclers Shooed 2 | . . . 1 1 . . . Parts Field Recycled . | . . . . . . . . Retrieved Matter . | . . . . . . . . Parts Self-Destructed . | . . . . . . . . Prevented . | . . . . . . . . Kills | -11 -10 -10 -9 -9 -9 -8 -8 ------- Run | Scr Mat Min Mat Min Exi Min Mat Combat Hostiles Destroyed 49 | . 8 6 10 3 . 3 19 Melee 9 | . 2 . 4 1 . . 2 Guns 16 | . 6 2 . . . . 8 AOE 10 | . . 3 . . . 2 5 Classes Destroyed 11 | . 5 1 5 . . . . Worker 6 | . 1 1 2 1 . . 1 Builder 4 | . 1 . . 2 . . 1 Tunneler 5 | . . . 1 3 . 1 . Hauler 4 | . . . 2 . . . 2 Recycler 5 | . . . 2 3 . . . Watcher 2 | . 1 . 1 . . . . Swarmer 9 | . 6 3 . . . . . Grunt 29 | . 2 1 7 3 . 3 13 Duelist 1 | . . . 1 . . . . Sentry 8 | . . . 2 . . . 6 Demolisher 2 | . . 2 . . . . . Best Kill Streak 4 | . 4 3 4 4 . 3 4 Combat Bots Only 4 | . 3 3 2 3 . 3 4 Max Kills in Single Turn 2 | . 2 2 1 1 . 1 2 Gunslinging 1 | . 1 . . . . . . Exploded 2 | . . 2 . . . 1 2 Melee 1 | . 1 . 1 1 . . 1 Uniques/NPCs Destroyed . | . . . . . . . . Combat | -11 -10 -10 -9 -9 -9 -8 -8 -------- Run | Scr Mat Min Mat Min Exi Min Mat Damage Taken 3302 | . 119 492 942 145 . 216 1388 Core 292 | . 10 72 124 11 . . 75 Absorbed by Shields . | . . . . . . . . Core Remaining (%) 77 | 100 . 67 . . . 66 . Volleys Fired 110 | . 13 19 5 13 . 4 56 Largest 2 | . 2 2 1 1 . 1 2 Hottest 91 | . 40 40 39 23 . 30 91 Shots Fired 154 | . 26 26 5 13 . 4 80 Gun 132 | . 26 24 . 13 . . 69 Cannon 8 | . . . 5 . . . 3 Launcher 14 | . . 2 . . . 4 8 Special . | . . . . . . . . Kinetic 137 | . 26 24 5 13 . . 69 Thermal 3 | . . . . . . . 3 Explosive 14 | . . 2 . . . 4 8 Electromagnetic . | . . . . . . . . Robot Hit Streak 10 | . 3 5 2 5 . 7 10 Robot Miss Streak 4 | . 4 1 3 3 . . 2 Penetration Max . | . . . . . . . . Secondary Targets 4 | . 2 . . . . . 2 Max Gunslinging Chain 1 | . 1 . . . . . 1 Shots Hit Robots 189 | . 18 21 42 26 . 7 75 Core Hits 71 | . 10 10 6 5 . 8 32 Critical Kills 1 | . . . 1 . . . . Critical Parts Destroyed 24 | . 1 2 8 3 . 3 7 Critical Strikes 26 | . 1 2 10 3 . 3 7 Smash 26 | . 1 2 10 3 . 3 7 Melee Attacks 123 | . 9 6 47 20 . 5 36 Impact 123 | . 9 6 47 20 . 5 36 Slashing . | . . . . . . . . Piercing . | . . . . . . . . Sneak Attacks 22 | . 1 1 8 7 . 2 3 Combat Hostiles . | . . . . . . . . Follow-up Attacks . | . . . . . . . . Damage Inflicted 6486 | . 378 572 1835 1110 . 526 2065 Guns 1106 | . 140 150 . 132 . . 684 Cannons 78 | . . . 36 . . . 42 Explosions 1097 | . . 184 . . . 309 604 Melee 4195 | . 238 228 1799 978 . 217 735 Ramming 10 | . . 10 . . . . . Kinetic 1142 | . 140 150 36 132 . . 684 Thermal 129 | . . . . . . . 129 Explosive 1010 | . . 184 . . . 309 517 Electromagnetic . | . . . . . . . . Impact 4195 | . 238 228 1799 978 . 217 735 Slashing . | . . . . . . . . Piercing . | . . . . . . . . Highest Corruption . | . . . . . . . . Average Corruption . | . . . . . . . . Corruption Purged . | . . . . . . . . Corruption Blocked . | . . . . . . . . Overload Shots . | . . . . . . . . Overflow Damage 1858 | . 95 180 567 394 . 217 405 Projectiles . | . . . . . . . . Explosions 61 | . . 27 . . . . 34 Melee 1797 | . 95 153 567 394 . 217 371 Knockbacks 15 | . 1 1 9 3 . 1 . Impact 15 | . 1 1 9 3 . 1 . Kinetic . | . . . . . . . . Secondary . | . . . . . . . . Self-Inflicted Damage 102 | . . . . . . 44 58 Shots 4 | . . . . . . 2 2 Rammed 1 | . . 1 . . . . . Targets Rammed 1 | . . 1 . . . . . Kicked . | . . . . . . . . Crushed . | . . . . . . . . Highest Temperature 190 | . 16 12 . . . 33 190 Average Temperature 61 | . 7 5 . . . 23 77 Received Heat Transfer 1377 | . 12 60 411 81 . 90 723 Siege Activations . | . . . . . . . . Robots Corrupted . | . . . . . . . . Combat Hostiles . | . . . . . . . . Parts Fried 40 | . 6 2 12 9 . 2 9 Impact Corruptions 71 | . 5 4 26 18 . 5 13 Robots Melted . | . . . . . . . . Combat Hostiles . | . . . . . . . . Parts Melted . | . . . . . . . . Heat Transferred 174 | . . . . . . . 174 Parts Sabotaged . | . . . . . . . . Parts Stolen . | . . . . . . . . Parts Stripped . | . . . . . . . . Power Chain Reactions . | . . . . . . . . Missiles Intercepted . | . . . . . . . . Alert | -11 -10 -10 -9 -9 -9 -8 -8 ------- Run | Scr Mat Min Mat Min Exi Min Mat Peak Influence 349 | . 155 207 186 109 . 94 349 Initial 45 | . . 45 19 19 . . 36 Average 91 | . 78 100 76 39 . 90 142 Maximum Alert Level 1 | . . 1 . . . . 1 Low Security (%) 84 | 100 100 58 100 100 . 100 68 Level 1 15 | . . 41 . . . . 31 Level 2 . | . . . . . . . . Level 3 . | . . . . . . . . Level 4 . | . . . . . . . . Level 5 . | . . . . . . . . High Security . | . . . . . . . . Max Security . | . . . . . . . . Squads Dispatched 5 | . 1 . 1 . . . 3 Investigation 2 | . . . 1 . . . 1 Extermination . | . . . . . . . . Reinforcement 3 | . 1 . . . . . 2 Assault . | . . . . . . . . Garrison . | . . . . . . . . Intercept . | . . . . . . . . Searches Triggered . | . . . . . . . . Construction Impeded . | . . . . . . . . Haulers Reinforced . | . . . . . . . . Active Scanning Responses . | . . . . . . . . Cargo Convoy Interrupts . | . . . . . . . . Stealth | -11 -10 -10 -9 -9 -9 -8 -8 --------- Run | Scr Mat Min Mat Min Exi Min Mat Distress Signals 2 | . 1 . 1 . . . . Communications Jammed . | . . . . . . . . Distress Signals . | . . . . . . . . Times Spotted 72 | . 14 12 16 3 . 3 24 Peak Tracking Total 7 | . 4 4 4 3 . 3 7 Tactical Retreats 6 | . . 2 1 . . . 3 Traps | -11 -10 -10 -9 -9 -9 -8 -8 ------- Run | Scr Mat Min Mat Min Exi Min Mat Traps Triggered 2 | . . . 1 . . . 1 Indirectly . | . . . . . . . . Trap Hack Attempts . | . . . . . . . . Triggered . | . . . . . . . . Disarmed . | . . . . . . . . Reprogrammed . | . . . . . . . . Reused . | . . . . . . . . Traps Extracted . | . . . . . . . . Installed . | . . . . . . . . Triggered . | . . . . . . . . Machines | -11 -10 -10 -9 -9 -9 -8 -8 ---------- Run | Scr Mat Min Mat Min Exi Min Mat Machines Disabled 4 | . . . . . . 1 3 Max in Single Turn 2 | . . . . . . 1 2 Machines Sabotaged . | . . . . . . . . Garrisons Compromised . | . . . . . . . . Overloaded Fab Kills . | . . . . . . . . Hacking | -11 -10 -10 -9 -9 -9 -8 -8 --------- Run | Scr Mat Min Mat Min Exi Min Mat Machines Accessed 10 | . 2 . 4 . 2 . 2 Terminals 8 | . 2 . 4 . . . 2 Fabricators . | . . . . . . . . Repair Stations . | . . . . . . . . Recycling Units . | . . . . . . . . Scanalyzers . | . . . . . . . . Garrison Access . | . . . . . . . . Total Hacks 22 | . 5 . 8 . 2 . 7 Successful 12 | . 5 . 4 . 2 . 1 Failed 10 | . . . 4 . . . 6 Catastrophic 1 | . . . 1 . . . . Database Lockouts . | . . . . . . . . Manual 21 | . 5 . 8 . 1 . 7 Terminals 20 | . 5 . 8 . . . 7 Fabricators . | . . . . . . . . Repair Stations . | . . . . . . . . Recycling Units . | . . . . . . . . Scanalyzers . | . . . . . . . . Garrison Access . | . . . . . . . . Terminal Hacks 9 | . 4 . 2 . 2 . 1 Record 1 | . . . . . 1 . . Robot Analysis 2 | . 2 . . . . . . Zone Layout 5 | . 2 . 2 . . . 1 EX-Prototype ID Bank 1 | . . . . . 1 . . Fabricator Hacks . | . . . . . . . . Repair Station Hacks . | . . . . . . . . Recycling Unit Hacks . | . . . . . . . . Scanalyzer . | . . . . . . . . Garrison Access Hacks . | . . . . . . . . Unauthorized Hacks 3 | . 1 . 2 . . . . Terminals 3 | . 1 . 2 . . . . Track 3 | . 1 . 2 . . . . Fabricators . | . . . . . . . . Repair Stations . | . . . . . . . . Recycling Units . | . . . . . . . . Scanalyzers . | . . . . . . . . Garrison Access . | . . . . . . . . Data Cores Recovered . | . . . . . . . . Used . | . . . . . . . . Hacking Detections 6 | . 1 . 3 . . . 2 Full Trace Events 2 | . . . 1 . . . 1 Feedback Events . | . . . . . . . . Feedback Blocked . | . . . . . . . . Robot Schematics Acquired . | . . . . . . . . Robots Built . | . . . . . . . . Authchips . | . . . . . . . . Time . | . . . . . . . . Total Robot Build Rating . | . . . . . . . . Part Schematics Acquired . | . . . . . . . . Parts Built . | . . . . . . . . Authchips . | . . . . . . . . Time . | . . . . . . . . Total Part Build Rating . | . . . . . . . . Parts Repaired . | . . . . . . . . Time . | . . . . . . . . Parts Recycled . | . . . . . . . . Recycled Matter . | . . . . . . . . Retrieved Matter . | . . . . . . . . Retrieved Components . | . . . . . . . . Parts Scanalyzed . | . . . . . . . . Part Schematics Acquired . | . . . . . . . . Parts Damaged . | . . . . . . . . Bothacking | -11 -10 -10 -9 -9 -9 -8 -8 ------------ Run | Scr Mat Min Mat Min Exi Min Mat Used RIF Installer . | . . . . . . . . Robots Hacked . | . . . . . . . . Non-combat . | . . . . . . . . Combat . | . . . . . . . . Robot Hacks Applied . | . . . . . . . . Relay Couplers Released . | . . . . . . . . Fabnet Peak Effective % . | . . . . . . . . Robots Rewired . | . . . . . . . . Allies Hacked . | . . . . . . . . Hacks Repelled . | . . . . . . . . Allies | -11 -10 -10 -9 -9 -9 -8 -8 -------- Run | Scr Mat Min Mat Min Exi Min Mat Total Allies 2 | . . 2 . . . . . Largest Group 2 | . . 2 . . . . . Highest-Rated Group 42 | . . 42 . . . . . Highest-Rated Ally 31 | . . 31 . . . . . Total Orders . | . . . . . . . . Ally Attacks 2 | . . 2 . . . . . Total Damage 22 | . . 22 . . . . . Kills 1 | . . 1 . . . . . Allies Corrupted . | . . . . . . . . Allies Melted . | . . . . . . . . Intel | -11 -10 -10 -9 -9 -9 -8 -8 ------- Run | Scr Mat Min Mat Min Exi Min Mat Robot Analysis Total 2 | . 2 . . . . . . Derelict Logs Recovered 4 | . . 1 . 3 . . . Drone Launches . | . . . . . . . . Drone Recoveries . | . . . . . . . . Exploration | -11 -10 -10 -9 -9 -9 -8 -8 ------------- Run | Scr Mat Min Mat Min Exi Min Mat Turns Passed 4999 | 75 632 798 956 691 381 305 1161 Spaces Moved 2360 | 43 264 304 395 388 263 186 517 Core 3 | 3 . . . . . . . Treads 706 | 40 264 304 98 . . . . Legs . | . . . . . . . . Wheels 1651 | . . . 297 388 263 186 517 Hover . | . . . . . . . . Flight . | . . . . . . . . Fastest Speed 50 | 50 160 240 115 145 145 145 105 Average Speed 169 | 152 202 240 188 153 145 149 127 Slowest Speed 400 | 160 240 240 400 190 145 150 155 Overloaded Moves . | . . . . . . . . Propulsion Burnouts . | . . . . . . . . Robots Hopped . | . . . . . . . . Cave-ins Triggered . | . . . . . . . . Exploration Rate (%) 46 | 3 51 57 34 75 69 33 48 Regions Visited 7 Branch Regions 4 Pre-discovered Areas 1 | . . . . . 1 . . Known Exits Taken 1 | . . 1 . . . . . Unknown Exits Taken 6 | 1 1 . 1 1 1 1 . Scrap Searched 1 | . . . . 1 . . . Spaces Dug 43 | . 3 . 3 2 . . 35 Terrain Destroyed 165 | . 3 14 3 2 . 16 127 Melee 22 | . 3 . 3 2 . . 14 Projectile . | . . . . . . . . AOE 143 | . . 14 . . . 16 113 Terrain Rammed . | . . . . . . . . Walls Destroyed . | . . . . . . . . Machines Disabled . | . . . . . . . . Actions | -11 -10 -10 -9 -9 -9 -8 -8 --------- Run | Scr Mat Min Mat Min Exi Min Mat Total 2966 | 50 322 335 507 430 263 197 862 Wait 256 | . 13 . 24 2 . . 217 Move 2353 | 42 263 303 394 387 262 185 517 Hop . | . . . . . . . . Pick Up 28 | 2 7 1 4 4 1 . 9 Fast Attach 29 | 6 4 . 12 1 . . 6 Attach 15 | . . 1 6 1 . 1 6 Detach 13 | . 3 . 5 1 . . 4 Swap 26 | . 5 4 4 . . 2 11 Drop 12 | . 5 . 6 1 . . . Fire 110 | . 13 19 5 13 . 4 56 Melee 123 | . 9 6 47 20 . 5 36 Ram . | . . . . . . . . Kick . | . . . . . . . . Crush 1 | . . 1 . . . . . Escape Stasis . | . . . . . . . . Rewire . | . . . . . . . . Trap . | . . . . . . . . Miscellaneous . | . . . . . . . . Route ------- -11/Scrapyard -10/Materials (discovered 2 exits: *Mat / [*Min]) -10/Mines (discovered 2 exits: *Mat x2) -9/Materials (discovered 2 exits: *Mat / [*Min]) -9/Mines (discovered 4 exits: *Mat x2 / *Exi / [*Zio]) -9/Exiles -8/Mines -8/Materials (discovered 5 exits: *Fac x3 / *Sto x2) History --------- Turn | Location | Event 23 | -11/Scrapyard | Discovered new exit (range 15) 76 | -11/Scrapyard | Entered Materials 310 | -10/Materials | Discovered new exit (range 8) 312 | -10/Materials | Build established: Mutant 577 | -10/Materials | Discovered new exit (range 16) 708 | -10/Materials | Entered Mines 715 | -10/Mines | Met a Derelict bent on vengeance 1000 | -10/Mines | Found a damaged Exp. Sensor Array with a note attached 1004 | -10/Mines | Found Prototype Device 1101 | -10/Mines | Discovered new exit (range 10) 1125 | -10/Mines | Identified exit to Materials 1300 | -10/Mines | Assembled infested the area 1305 | -10/Mines | Assisted by a Guerilla fighting off Assembled 1506 | -10/Mines | Entered Materials 1506 | -9/Materials | Evolved 2 slots: Utility x2 1960 | -9/Materials | Discovered new exit (range 9) 2393 | -9/Materials | Lost 3 parts (1n2u) 2439 | -9/Materials | Discovered new exit (range 7) 2462 | -9/Materials | Entered Mines 2463 | -9/Mines | A Derelict revealed a hidden shortcut to a safe place 2473 | -9/Mines | Learned location of 1 exit from Lower Caves 2509 | -9/Mines | Discovered new exit (range 6) 2649 | -9/Mines | Learned Materials emergency access door positions 2906 | -9/Mines | Discovered new exit (range 10) 3089 | -9/Mines | Learned 4 Materials zone layouts 3148 | -9/Mines | Deemed a non-threat by the Exiles lab entrance 3148 | -9/Mines | Discovered new exit (range 5) 3153 | -9/Mines | Entered Exiles 3190 | -9/Exiles | Met 8R-AWN 3213 | -9/Exiles | Met EX-HEX 3277 | -9/Exiles | Met EX-DEC 3303 | -9/Exiles | Learned location of Zion (-7) 3330 | -9/Exiles | Met EX-BIN 3351 | -9/Exiles | Aligned with FarCom system 3352 | -9/Exiles | Given EX-Vault access code 3385 | -9/Exiles | Opened EX-Vault 3394 | -9/Exiles | Found Modified TNC 3424 | -9/Exiles | Warned to stay clear of 0b10 Research branches 3523 | -9/Exiles | Discovered new exit (range 10) 3534 | -9/Exiles | Left Exiles lab with Modified TNC 3534 | -9/Exiles | Entered Mines 3591 | -8/Mines | Discovered new exit (range 9) 3839 | -8/Mines | Entered Materials 3839 | -8/Materials | Evolved 2 slots: Propulsion x2 3840 | -8/Materials | Identified exit to Factory 3840 | -8/Materials | Identified exit to Storage 4176 | -8/Materials | Build established: Scavenger-Mutant 4858 | -8/Materials | Discovered exit to Factory (range 16) 5000 | -8/Materials | Self-destructed Last Messages --------------- 04860_ Weight Redist. System fried. 04864_ Acquired Adv. Beam Cannon. 04888_ Connecting with Terminal... 04925_ ALERT: Hostiles spotted, dispatching reinforcements to Terminal M002. 04944_ Critical hit (Burn: +37). 04944_ G-47 Trooper destroyed. 04946_ Hrd. Medium Armor Plating destroyed. 04954_ Imp. Assault Rifle destroyed. 04956_ Critical hit (Burn: +37). 04957_ G-47 Trooper destroyed. 04957_ Switching to secondary target: Y-45 Defender. 04962_ Imp. Assault Rifle destroyed. 04965_ Wheel destroyed. 04976_ Y-45 Defender destroyed. 04982_ Lgt. Treads destroyed. 04986_ Critical hit (Burn: +37). 04992_ Hrd. Medium Armor Plating destroyed. 04996_ Wheel destroyed. 04998_ G-47 Trooper destroyed. Map ----- +----------------------------------------------------+ | | | | | | | | | | | | | | | | | | | | | | | | | | | | | | | | | ?????????????????????????????????????????????##### | | ????????????????????????????????????????????# | | ????????????????????????????????????????????# | | ????????????????????????????????????????????# | | ???????????????????############?????????????# | | ???????????????????# # #?????????????# | | ???????????????????# T!# < #?????????????# | | ???????????????????# =#%[ #?????????????# | | ?????????Y?????????# %*%% +?????????????? | | ???????????????????# @# #???????????????? | | ???????????????????# # #???????????????###+ | | ???????????????????######## ##??????????????# | | ?????????????????????????# #??????????????# | | ?????????????????????????# #??????????????# | | ?????????????????????????+ #??????????????# | | ??????????????g??????????# #???????######### | | ??????????????g??????????# #???????# ! # | | ????????????g????????????## ##?######## """ + | | ??????????????????????????# #? ## "R # | | ??????????????????????????# #? ## """ # | | ??????????????????????????#!= # ## # | | ??????????????????????????# %=# ## [ ! # | | ??????????????????????????# + """ ########" | | ??????????????????????????# # "R ! #??????## | | ??????????????????????????### # """ #???????# | | #?# ??????????????????# #? "" #???????# | | ########??????????????????# #? ?????????# | | ## #????? ############ #??####??????????# | | #### #???? #????????????????# | | > ???? #???????????????## | | ### #???? #???????????????# | | #?# #????? ############ #???????????????# | | #?#######??????????????????#=#????????######?# | | #??????????????????????????#%#####??### ## | +----------------------------------------------------+ Best States ------------- Heat Dissipation 38 Energy Generation 14 Energy Capacity 265 Matter Stores 300 Matter Capacity 300 Sight Range 16 Terrain Scan Density 10 Armor Coverage 675 Evasion (%) 40 Recoil Reduction 2 Item Schematics ----------------- None Robot Schematics ------------------ None Fabricated ------------ Nothing Alien Tech Used ----------------- None Achievements -------------- None Challenges ------------ None Game ------ Seed ArmoredThermalScythe Manual? 0 Play Time 00:26:37 Cumulative 257.1 hours Start 2022.07.11 @ 12:49:42 End 2022.07.11 @ 13:25:26 Sessions 1 Manual Loads 0 Difficulty Rogue Special Mode None Game No. 358 Rogue 271 Adventurer 87 Explorer 0 Win Type - Total 8 Types 4/0/3/1/0/0/0/0/0 Lore% 73 Gallery% 80 Achievement% 68 Wizard Run 0 Options --------- ASCII 0 Keyboard 1 Movement Numpad Keybinds 0 Fullscreen 1 Font 18/Smallcaps Map View 76x50 Tactical HUD 1 Map Filters NONE Filters NONE Steam 1 RUN: b771966c-cb0f-46ef-b1de-12a2ea7c4e24